[Event "Titled Tuesday Blitz March 07 Early 2023"]
[White "Ilinca Ilinca, Felix Antonio"]
[Black "Zakhartsov, Vladimir"]
[WhiteFideId "54764998"]
[BlackFideId "4145097"]
[WhiteElo "2031"]
[BlackElo "2521"]
[Result "1-0"]
[Round "03"]
[TimeControl "180+2"]
[Date "2023.03.07"]
[WhiteClock "0:00:31"]
[BlackClock "0:00:01"]

1. e4 {[%clk 0:02:59]}  c5 {[%clk 0:02:58]} 2. Nf3 {[%clk 0:02:59]}  d6 {[%clk 0:02:58]} 3. Bb5+ {[%clk 0:02:46]}  Nd7 {[%clk 0:02:55]} 4. g4 {[%clk 0:02:42]}  a6 {[%clk 0:02:34]} 5. Be2 {[%clk 0:02:40]}  g6 {[%clk 0:02:24]} 6. d3 {[%clk 0:02:34]}  Bg7 {[%clk 0:02:24]} 7. h4 {[%clk 0:02:33]}  Ngf6 {[%clk 0:02:08]} 8. g5 {[%clk 0:02:29]}  Nh5 {[%clk 0:02:08]} 9. Nh2 {[%clk 0:02:29]}  b5 {[%clk 0:01:57]} 10. Bxh5 {[%clk 0:02:22]}  gxh5 {[%clk 0:01:58]} 11. Nc3 {[%clk 0:02:15]}  Bb7 {[%clk 0:01:54]} 12. f4 {[%clk 0:02:06]}  d5 {[%clk 0:01:48]} 13. e5 {[%clk 0:02:01]}  d4 {[%clk 0:01:48]} 14. Ne4 {[%clk 0:01:57]}  Bxe4 {[%clk 0:01:39]} 15. dxe4 {[%clk 0:01:57]}  Qb6 {[%clk 0:01:16]} 16. Qxh5 {[%clk 0:01:55]}  h6 {[%clk 0:01:08]} 17. Qg4 {[%clk 0:01:44]}  hxg5 {[%clk 0:01:04]} 18. hxg5 {[%clk 0:01:45]}  O-O-O {[%clk 0:00:54]} 19. Bd2 {[%clk 0:01:39]}  Rh7 {[%clk 0:00:47]} 20. O-O-O {[%clk 0:01:34]}  Rdh8 {[%clk 0:00:47]} 21. Qg2 {[%clk 0:01:30]}  Qe6 {[%clk 0:00:47]} 22. Kb1 {[%clk 0:01:07]}  Qh3 {[%clk 0:00:45]} 23. Qe2 {[%clk 0:01:08]}  Nb6 {[%clk 0:00:34]} 24. c3 {[%clk 0:01:00]}  Nc4 {[%clk 0:00:19]} 25. cxd4 {[%clk 0:00:59]}  cxd4 {[%clk 0:00:20]} 26. Bc1 {[%clk 0:00:57]}  Qg3 {[%clk 0:00:14]} 27. Nf1 {[%clk 0:00:53]}  d3 {[%clk 0:00:03]} 28. Rxd3 {[%clk 0:00:47]}  Rxh1 {[%clk 0:00:02]} 29. Rxg3 {[%clk 0:00:45]}  Kb8 {[%clk 0:00:02]} 30. b3 {[%clk 0:00:43]}  Nb6 {[%clk 0:00:01]} 31. Qf2 {[%clk 0:00:43]}  Kb7 {[%clk 0:00:01]} 32. Be3 {[%clk 0:00:38]}  Nc8 {[%clk 0:00:01]} 33. Rg2 {[%clk 0:00:36]}  e6 {[%clk 0:00:01]} 34. Kb2 {[%clk 0:00:35]}  Ne7 {[%clk 0:00:01]} 35. Rh2 {[%clk 0:00:35]}  R8xh2 {[%clk 0:00:01]} 36. Nxh2 {[%clk 0:00:35]}  Nc6 {[%clk 0:00:02]} 37. Nf3 {[%clk 0:00:34]}  Rh3 {[%clk 0:00:01]} 38. a3 {[%clk 0:00:33]}  a5 {[%clk 0:00:01]} 39. Bd2 {[%clk 0:00:31]} 1-0


[Site "https://www.chess.com"]

[Event "Titled Tuesday Blitz March 07 Early 2023"]
[White "Narayanan, Srinath"]
[Black "Borrmann, Laurenz"]
[WhiteFideId "5018420"]
[BlackFideId "312187930"]
[WhiteElo "2438"]
[BlackElo "2312"]
[Result "0-1"]
[Round "03"]
[TimeControl "180+2"]
[Date "2023.03.07"]
[WhiteClock "0:00:03"]
[BlackClock "0:00:10"]

1. d4 {[%clk 0:03:00]}  Nf6 {[%clk 0:02:57]} 2. Nf3 {[%clk 0:02:59]}  e6 {[%clk 0:02:56]} 3. Bf4 {[%clk 0:02:59]}  d5 {[%clk 0:02:53]} 4. e3 {[%clk 0:02:59]}  Bd6 {[%clk 0:02:52]} 5. Ne5 {[%clk 0:02:58]}  O-O {[%clk 0:02:50]} 6. Nd2 {[%clk 0:02:58]}  c5 {[%clk 0:02:49]} 7. c3 {[%clk 0:02:54]}  Qc7 {[%clk 0:02:48]} 8. Bd3 {[%clk 0:02:54]}  Nbd7 {[%clk 0:02:28]} 9. Ndf3 {[%clk 0:02:53]}  Ne4 {[%clk 0:02:16]} 10. Nxd7 {[%clk 0:02:08]}  Bxd7 {[%clk 0:02:13]} 11. Bxd6 {[%clk 0:02:06]}  Qxd6 {[%clk 0:02:08]} 12. Bxe4 {[%clk 0:02:05]}  dxe4 {[%clk 0:02:08]} 13. Ne5 {[%clk 0:02:05]}  Bb5 {[%clk 0:01:53]} 14. h4 {[%clk 0:01:44]}  f6 {[%clk 0:01:34]} 15. Ng4 {[%clk 0:01:43]}  Rad8 {[%clk 0:01:30]} 16. h5 {[%clk 0:01:40]}  cxd4 {[%clk 0:01:22]} 17. exd4 {[%clk 0:01:31]}  Kh8 {[%clk 0:01:14]} 18. h6 {[%clk 0:01:29]}  g6 {[%clk 0:01:13]} 19. Qd2 {[%clk 0:01:25]}  e5 {[%clk 0:01:08]} 20. Rd1 {[%clk 0:00:48]}  Qe6 {[%clk 0:00:50]} 21. Ne3 {[%clk 0:00:45]}  exd4 {[%clk 0:00:48]} 22. cxd4 {[%clk 0:00:44]}  Qxa2 {[%clk 0:00:48]} 23. d5 {[%clk 0:00:43]}  Bd3 {[%clk 0:00:45]} 24. f4 {[%clk 0:00:36]}  Qb3 {[%clk 0:00:32]} 25. Kf2 {[%clk 0:00:34]}  Qb6 {[%clk 0:00:33]} 26. Kg3 {[%clk 0:00:29]}  Qd6 {[%clk 0:00:29]} 27. Qf2 {[%clk 0:00:19]}  g5 {[%clk 0:00:28]} 28. Kh3 {[%clk 0:00:14]}  gxf4 {[%clk 0:00:24]} 29. Ng4 {[%clk 0:00:15]}  Rg8 {[%clk 0:00:17]} 30. Qh4 {[%clk 0:00:14]}  Rg6 {[%clk 0:00:17]} 31. Rc1 {[%clk 0:00:13]}  Be2 {[%clk 0:00:16]} 32. Nf2 {[%clk 0:00:11]}  Rdg8 {[%clk 0:00:16]} 33. Nxe4 {[%clk 0:00:07]}  Qxd5 {[%clk 0:00:12]} 34. Rhe1 {[%clk 0:00:03]}  Qxe4 {[%clk 0:00:10]} 35. Qf2 {[%clk 0:00:03]}  Qf5+ {[%clk 0:00:09]} 36. Kh2 {[%clk 0:00:03]}  Qh5+ {[%clk 0:00:09]} 37. Kg1 {[%clk 0:00:03]}  Bf3 {[%clk 0:00:10]} 0-1


[Site "https://www.chess.com"]

[Event "Titled Tuesday Blitz March 07 Early 2023"]
[White "Garv Gaur"]
[Black "Harsha Bharathakoti"]
[WhiteFideId "45030839"]
[BlackFideId "5078776"]
[WhiteElo "2068"]
[BlackElo "2481"]
[Result "0-1"]
[Round "03"]
[TimeControl "180+2"]
[Date "2023.03.07"]
[WhiteClock "0:00:06"]
[BlackClock "0:00:15"]

1. Nf3 {[%clk 0:03:00]}  f5 {[%clk 0:02:56]} 2. g3 {[%clk 0:02:58]}  Nf6 {[%clk 0:02:56]} 3. d4 {[%clk 0:02:57]}  g6 {[%clk 0:02:56]} 4. c3 {[%clk 0:02:54]}  Bg7 {[%clk 0:02:57]} 5. Qb3 {[%clk 0:02:54]}  e6 {[%clk 0:02:57]} 6. Bg2 {[%clk 0:02:53]}  O-O {[%clk 0:02:57]} 7. O-O {[%clk 0:02:53]}  Nc6 {[%clk 0:02:54]} 8. Rd1 {[%clk 0:02:50]}  d6 {[%clk 0:02:53]} 9. Nbd2 {[%clk 0:02:48]}  Kh8 {[%clk 0:02:46]} 10. Nf1 {[%clk 0:02:48]}  Qe8 {[%clk 0:02:45]} 11. c4 {[%clk 0:02:31]}  e5 {[%clk 0:02:40]} 12. d5 {[%clk 0:02:31]}  Ne7 {[%clk 0:02:25]} 13. Qc2 {[%clk 0:02:31]}  h6 {[%clk 0:02:21]} 14. b4 {[%clk 0:02:28]}  g5 {[%clk 0:02:21]} 15. Bb2 {[%clk 0:02:27]}  Ng6 {[%clk 0:02:16]} 16. N3d2 {[%clk 0:02:20]}  f4 {[%clk 0:02:11]} 17. Ne4 {[%clk 0:02:15]}  g4 {[%clk 0:01:55]} 18. Nxf6 {[%clk 0:02:02]}  Rxf6 {[%clk 0:01:49]} 19. f3 {[%clk 0:02:00]}  Bf5 {[%clk 0:01:44]} 20. Qd2 {[%clk 0:02:00]}  Qd7 {[%clk 0:01:21]} 21. e4 {[%clk 0:01:56]}  gxf3 {[%clk 0:01:19]} 22. Bxf3 {[%clk 0:01:53]}  Bh3 {[%clk 0:01:20]} 23. Bg2 {[%clk 0:01:48]}  Raf8 {[%clk 0:00:51]} 24. Bxh3 {[%clk 0:01:43]}  Qxh3 {[%clk 0:00:52]} 25. Qe2 {[%clk 0:01:18]}  fxg3 {[%clk 0:00:40]} 26. hxg3 {[%clk 0:01:19]}  Nh4 {[%clk 0:00:34]} 27. Rd3 {[%clk 0:00:48]}  Rf2 {[%clk 0:00:28]} 28. Qxf2 {[%clk 0:00:18]}  Rxf2 {[%clk 0:00:29]} 29. Kxf2 {[%clk 0:00:19]}  Qg2+ {[%clk 0:00:29]} 30. Ke3 {[%clk 0:00:17]}  Qxb2 {[%clk 0:00:30]} 31. Rad1 {[%clk 0:00:16]}  Ng6 {[%clk 0:00:22]} 32. Nd2 {[%clk 0:00:14]}  Qxb4 {[%clk 0:00:22]} 33. Rb3 {[%clk 0:00:14]}  Qc5+ {[%clk 0:00:21]} 34. Kf3 {[%clk 0:00:15]}  b6 {[%clk 0:00:21]} 35. Re3 {[%clk 0:00:09]}  Nf8 {[%clk 0:00:17]} 36. Ke2 {[%clk 0:00:09]}  Nh7 {[%clk 0:00:16]} 37. Kd3 {[%clk 0:00:09]}  Qa3+ {[%clk 0:00:15]} 38. Ke2 {[%clk 0:00:10]}  Qxa2 {[%clk 0:00:15]} 39. Rf1 {[%clk 0:00:09]}  Ng5 {[%clk 0:00:15]} 40. Rc3 {[%clk 0:00:08]}  a5 {[%clk 0:00:14]} 41. g4 {[%clk 0:00:06]}  Nxe4 {[%clk 0:00:14]} 42. Rd3 {[%clk 0:00:05]}  Nxd2 {[%clk 0:00:15]} 43. Rxd2 {[%clk 0:00:06]}  Qxc4+ {[%clk 0:00:15]} 0-1


[Site "https://www.chess.com"]

[Event "Titled Tuesday Blitz March 07 Early 2023"]
[White "Pakleza, Zbigniew"]
[Black "Sharapov, Evgeny"]
[WhiteFideId "1119290"]
[BlackFideId "14103133"]
[WhiteElo "2410"]
[BlackElo "2367"]
[Result "1-0"]
[Round "03"]
[TimeControl "180+2"]
[Date "2023.03.07"]
[WhiteClock "0:00:06"]
[BlackClock "0:00:02"]

1. d4 {[%clk 0:03:00]}  d5 {[%clk 0:02:59]} 2. Bf4 {[%clk 0:03:00]}  Nf6 {[%clk 0:02:59]} 3. e3 {[%clk 0:03:00]}  c6 {[%clk 0:02:59]} 4. Nf3 {[%clk 0:02:59]}  Bg4 {[%clk 0:02:59]} 5. c4 {[%clk 0:03:00]}  Bxf3 {[%clk 0:02:58]} 6. Qxf3 {[%clk 0:02:59]}  e6 {[%clk 0:02:58]} 7. Nc3 {[%clk 0:02:58]}  Nbd7 {[%clk 0:02:58]} 8. Bd3 {[%clk 0:02:57]}  Bb4 {[%clk 0:02:57]} 9. O-O {[%clk 0:02:56]}  O-O {[%clk 0:02:56]} 10. Rac1 {[%clk 0:02:49]}  Re8 {[%clk 0:02:52]} 11. Bg3 {[%clk 0:02:38]}  h6 {[%clk 0:02:46]} 12. Rfd1 {[%clk 0:02:37]}  Qe7 {[%clk 0:02:45]} 13. h3 {[%clk 0:02:18]}  Bxc3 {[%clk 0:02:40]} 14. bxc3 {[%clk 0:02:05]}  e5 {[%clk 0:02:40]} 15. Bb1 {[%clk 0:02:02]}  e4 {[%clk 0:02:37]} 16. Qe2 {[%clk 0:02:02]}  Nb6 {[%clk 0:02:35]} 17. cxd5 {[%clk 0:01:38]}  cxd5 {[%clk 0:02:35]} 18. Qb5 {[%clk 0:01:37]}  Qd7 {[%clk 0:02:26]} 19. Qb3 {[%clk 0:01:30]}  Nc4 {[%clk 0:02:25]} 20. a4 {[%clk 0:01:25]}  a6 {[%clk 0:02:23]} 21. Ba2 {[%clk 0:01:16]}  b5 {[%clk 0:02:23]} 22. Rb1 {[%clk 0:01:12]}  Rec8 {[%clk 0:02:16]} 23. Ra1 {[%clk 0:00:30]}  bxa4 {[%clk 0:02:12]} 24. Qc2 {[%clk 0:00:30]}  Ne8 {[%clk 0:02:03]} 25. Bb1 {[%clk 0:00:20]}  a3 {[%clk 0:01:59]} 26. Ba2 {[%clk 0:00:19]}  Ned6 {[%clk 0:01:57]} 27. Rdb1 {[%clk 0:00:18]}  Nb5 {[%clk 0:01:47]} 28. Rb4 {[%clk 0:00:15]}  a5 {[%clk 0:01:41]} 29. Rb3 {[%clk 0:00:13]}  Nbd6 {[%clk 0:01:22]} 30. Rab1 {[%clk 0:00:11]}  Qc6 {[%clk 0:01:09]} 31. Kh2 {[%clk 0:00:07]}  h5 {[%clk 0:01:00]} 32. Qe2 {[%clk 0:00:07]}  g6 {[%clk 0:00:59]} 33. Kg1 {[%clk 0:00:06]}  Kh7 {[%clk 0:00:43]} 34. Bf4 {[%clk 0:00:06]}  Ra7 {[%clk 0:00:35]} 35. g4 {[%clk 0:00:06]}  Qd7 {[%clk 0:00:20]} 36. Kg2 {[%clk 0:00:05]}  h4 {[%clk 0:00:18]} 37. Qd1 {[%clk 0:00:03]}  f5 {[%clk 0:00:13]} 38. g5 {[%clk 0:00:02]}  Kg8 {[%clk 0:00:11]} 39. Qe2 {[%clk 0:00:03]}  Kf7 {[%clk 0:00:07]} 40. Qc2 {[%clk 0:00:03]}  Rcc7 {[%clk 0:00:07]} 41. Rb8 {[%clk 0:00:03]}  Rab7 {[%clk 0:00:05]} 42. Rh8 {[%clk 0:00:04]}  Kg7 {[%clk 0:00:05]} 43. Ra8 {[%clk 0:00:03]}  Rxb1 {[%clk 0:00:05]} 44. Qxb1 {[%clk 0:00:04]}  Rb7 {[%clk 0:00:05]} 45. Qc1 {[%clk 0:00:04]}  Ra7 {[%clk 0:00:04]} 46. Rb8 {[%clk 0:00:04]}  Rb7 {[%clk 0:00:04]} 47. Ra8 {[%clk 0:00:04]}  Ra7 {[%clk 0:00:05]} 48. Rxa7 {[%clk 0:00:04]}  Qxa7 {[%clk 0:00:04]} 49. Qb1 {[%clk 0:00:05]}  Qb6 {[%clk 0:00:04]} 50. Qxb6 {[%clk 0:00:04]}  Nxb6 {[%clk 0:00:04]} 51. Bxd6 {[%clk 0:00:05]}  Na4 {[%clk 0:00:04]} 52. Bxa3 {[%clk 0:00:05]}  Nxc3 {[%clk 0:00:04]} 53. Bb3 {[%clk 0:00:05]}  a4 {[%clk 0:00:04]} 54. Bc2 {[%clk 0:00:05]}  Nb5 {[%clk 0:00:03]} 55. Bb4 {[%clk 0:00:05]}  a3 {[%clk 0:00:04]} 56. Bb3 {[%clk 0:00:05]}  Nc7 {[%clk 0:00:03]} 57. Bxa3 {[%clk 0:00:06]}  Kf7 {[%clk 0:00:03]} 58. Bd6 {[%clk 0:00:06]}  Nb5 {[%clk 0:00:03]} 59. Bc5 {[%clk 0:00:07]}  Ke6 {[%clk 0:00:03]} 60. Ba4 {[%clk 0:00:06]}  Nc7 {[%clk 0:00:02]} 61. Bb6 {[%clk 0:00:06]} 1-0


[Site "https://www.chess.com"]

[Event "Titled Tuesday Blitz March 07 Early 2023"]
[White "Corrales Jimenez, Fidel"]
[Black "Sreyas Payyappat"]
[WhiteFideId "3506690"]
[BlackFideId "46674969"]
[WhiteElo "2541"]
[BlackElo "2083"]
[Result "1-0"]
[Round "03"]
[TimeControl "180+2"]
[Date "2023.03.07"]
[WhiteClock "0:00:54"]
[BlackClock "0:00:13"]

1. d4 {[%clk 0:03:00]}  Nf6 {[%clk 0:02:59]} 2. Nf3 {[%clk 0:03:01]}  c5 {[%clk 0:03:00]} 3. g3 {[%clk 0:03:00]}  e6 {[%clk 0:03:00]} 4. Bg2 {[%clk 0:03:01]}  Nc6 {[%clk 0:02:59]} 5. O-O {[%clk 0:03:01]}  cxd4 {[%clk 0:02:49]} 6. Nxd4 {[%clk 0:03:02]}  Bc5 {[%clk 0:02:49]} 7. Nb3 {[%clk 0:03:00]}  Bb6 {[%clk 0:02:49]} 8. c4 {[%clk 0:03:01]}  O-O {[%clk 0:02:49]} 9. Nc3 {[%clk 0:02:58]}  a6 {[%clk 0:02:48]} 10. Bf4 {[%clk 0:02:55]}  Bc7 {[%clk 0:02:48]} 11. Bd6 {[%clk 0:02:51]}  Bxd6 {[%clk 0:02:48]} 12. Qxd6 {[%clk 0:02:52]}  Qe7 {[%clk 0:02:47]} 13. Rfd1 {[%clk 0:02:51]}  Qxd6 {[%clk 0:02:46]} 14. Rxd6 {[%clk 0:02:52]}  Ne8 {[%clk 0:02:35]} 15. Rd2 {[%clk 0:02:51]}  Rb8 {[%clk 0:02:21]} 16. Rad1 {[%clk 0:02:49]}  b5 {[%clk 0:02:20]} 17. c5 {[%clk 0:02:49]}  Nf6 {[%clk 0:02:16]} 18. Ne4 {[%clk 0:02:47]}  Nd5 {[%clk 0:02:03]} 19. Nd6 {[%clk 0:02:46]}  Nde7 {[%clk 0:01:55]} 20. Nd4 {[%clk 0:02:40]}  Bb7 {[%clk 0:01:37]} 21. Nxb7 {[%clk 0:02:32]}  Rxb7 {[%clk 0:01:37]} 22. Nxc6 {[%clk 0:02:30]}  dxc6 {[%clk 0:01:37]} 23. Rd7 {[%clk 0:02:30]}  Rxd7 {[%clk 0:01:35]} 24. Rxd7 {[%clk 0:02:31]}  Nd5 {[%clk 0:01:35]} 25. e4 {[%clk 0:02:22]}  Nb4 {[%clk 0:01:22]} 26. a3 {[%clk 0:02:21]}  Nc2 {[%clk 0:01:22]} 27. e5 {[%clk 0:02:18]}  b4 {[%clk 0:01:17]} 28. Bxc6 {[%clk 0:02:12]}  bxa3 {[%clk 0:01:17]} 29. bxa3 {[%clk 0:02:13]}  Nxa3 {[%clk 0:01:16]} 30. Bb7 {[%clk 0:02:13]}  Nc4 {[%clk 0:01:12]} 31. f4 {[%clk 0:02:09]}  a5 {[%clk 0:01:05]} 32. c6 {[%clk 0:02:09]}  Nb6 {[%clk 0:01:00]} 33. Rd4 {[%clk 0:01:31]}  Nd5 {[%clk 0:00:16]} 34. Kf2 {[%clk 0:01:31]}  f6 {[%clk 0:00:14]} 35. exf6 {[%clk 0:01:31]}  gxf6 {[%clk 0:00:14]} 36. Rxd5 {[%clk 0:01:24]}  exd5 {[%clk 0:00:13]} 37. c7 {[%clk 0:01:24]}  a4 {[%clk 0:00:13]} 38. c8=Q {[%clk 0:01:25]}  Rxc8 {[%clk 0:00:13]} 39. Bxc8 {[%clk 0:01:26]}  a3 {[%clk 0:00:09]} 40. Be6+ {[%clk 0:01:25]}  Kg7 {[%clk 0:00:09]} 41. Bxd5 {[%clk 0:01:26]}  Kg6 {[%clk 0:00:10]} 42. Kf3 {[%clk 0:01:26]}  Kf5 {[%clk 0:00:11]} 43. g4+ {[%clk 0:01:26]}  Kg6 {[%clk 0:00:11]} 44. h4 {[%clk 0:01:26]}  h5 {[%clk 0:00:11]} 45. g5 {[%clk 0:01:24]}  fxg5 {[%clk 0:00:11]} 46. fxg5 {[%clk 0:01:23]}  Kf5 {[%clk 0:00:12]} 47. Ba2 {[%clk 0:01:21]}  Ke5 {[%clk 0:00:12]} 48. Bb1 {[%clk 0:01:19]}  Ke6 {[%clk 0:00:12]} 49. Kf4 {[%clk 0:01:19]}  Kf7 {[%clk 0:00:11]} 50. Kf5 {[%clk 0:01:19]}  Kg7 {[%clk 0:00:11]} 51. Ba2 {[%clk 0:01:17]}  Kh7 {[%clk 0:00:11]} 52. Kf6 {[%clk 0:01:16]}  Kh8 {[%clk 0:00:11]} 53. Bb3 {[%clk 0:01:12]}  Kh7 {[%clk 0:00:12]} 54. g6+ {[%clk 0:00:54]}  Kh6 {[%clk 0:00:13]} 55. g7 {[%clk 0:00:54]}  a2 {[%clk 0:00:14]} 56. Bxa2 {[%clk 0:00:53]}  Kh7 {[%clk 0:00:13]} 57. g8=Q+ {[%clk 0:00:53]}  Kh6 {[%clk 0:00:13]} 58. Qh8# {[%clk 0:00:54]} 1-0


[Site "https://www.chess.com"]

[Event "Titled Tuesday Blitz March 07 Early 2023"]
[White "Delorme, Alban"]
[Black "Atakhan, Abtin"]
[WhiteFideId "623636"]
[BlackFideId "22502203"]
[WhiteElo "2196"]
[BlackElo "2008"]
[Result "0-1"]
[Round "03"]
[TimeControl "180+2"]
[Date "2023.03.07"]
[WhiteClock "0:00:06"]
[BlackClock "0:00:15"]

1. e4 {[%clk 0:03:00]}  c5 {[%clk 0:03:00]} 2. Nf3 {[%clk 0:03:00]}  d6 {[%clk 0:03:00]} 3. d4 {[%clk 0:03:00]}  cxd4 {[%clk 0:03:01]} 4. Nxd4 {[%clk 0:03:01]}  Nf6 {[%clk 0:03:02]} 5. Nc3 {[%clk 0:03:01]}  a6 {[%clk 0:03:02]} 6. Bg5 {[%clk 0:03:01]}  e6 {[%clk 0:03:02]} 7. f4 {[%clk 0:03:02]}  h6 {[%clk 0:03:03]} 8. Bh4 {[%clk 0:03:01]}  Qb6 {[%clk 0:03:03]} 9. a3 {[%clk 0:02:58]}  Nc6 {[%clk 0:03:03]} 10. Bf2 {[%clk 0:02:54]}  Qc7 {[%clk 0:03:03]} 11. Qd2 {[%clk 0:02:52]}  Bd7 {[%clk 0:03:00]} 12. Be2 {[%clk 0:02:50]}  Be7 {[%clk 0:02:57]} 13. Bf3 {[%clk 0:02:50]}  Rc8 {[%clk 0:02:52]} 14. O-O-O {[%clk 0:02:41]}  b5 {[%clk 0:02:48]} 15. g4 {[%clk 0:02:31]}  Nxd4 {[%clk 0:02:33]} 16. Bxd4 {[%clk 0:02:29]}  e5 {[%clk 0:02:33]} 17. Be3 {[%clk 0:02:25]}  Be6 {[%clk 0:01:58]} 18. f5 {[%clk 0:02:00]}  Bc4 {[%clk 0:01:46]} 19. Kb1 {[%clk 0:01:57]}  a5 {[%clk 0:01:30]} 20. h4 {[%clk 0:01:33]}  b4 {[%clk 0:01:27]} 21. axb4 {[%clk 0:01:28]}  axb4 {[%clk 0:01:28]} 22. Na4 {[%clk 0:01:28]}  b3 {[%clk 0:01:23]} 23. Nb6 {[%clk 0:01:16]}  Qa7 {[%clk 0:01:13]} 24. Qb4 {[%clk 0:00:30]}  Bd3 {[%clk 0:00:39]} 25. Nxc8 {[%clk 0:00:19]}  bxc2+ {[%clk 0:00:36]} 26. Kc1 {[%clk 0:00:19]}  cxd1=Q+ {[%clk 0:00:34]} 27. Rxd1 {[%clk 0:00:12]}  Qxe3+ {[%clk 0:00:35]} 28. Rd2 {[%clk 0:00:10]}  Qxf3 {[%clk 0:00:31]} 29. Nxd6+ {[%clk 0:00:04]}  Bxd6 {[%clk 0:00:29]} 30. Qxd6 {[%clk 0:00:05]}  Qf1+ {[%clk 0:00:13]} 31. Rd1 {[%clk 0:00:05]}  Qf4+ {[%clk 0:00:14]} 32. Rd2 {[%clk 0:00:06]}  Qxd2+ {[%clk 0:00:14]} 33. Kxd2 {[%clk 0:00:06]}  Nxe4+ {[%clk 0:00:15]} 0-1


[Site "https://www.chess.com"]

[Event "Titled Tuesday Blitz March 07 Early 2023"]
[White "Crevatin, Leo"]
[Black "Madaminov, Mukhiddin"]
[WhiteFideId "1726307"]
[BlackFideId "14210703"]
[WhiteElo "2190"]
[BlackElo "2511"]
[Result "0-1"]
[Round "03"]
[TimeControl "180+2"]
[Date "2023.03.07"]
[WhiteClock "0:00:10"]
[BlackClock "0:00:19"]

1. d4 {[%clk 0:03:00]}  Nf6 {[%clk 0:02:59]} 2. c4 {[%clk 0:03:00]}  e6 {[%clk 0:03:00]} 3. Nc3 {[%clk 0:03:00]}  Bb4 {[%clk 0:02:59]} 4. e3 {[%clk 0:03:01]}  O-O {[%clk 0:02:54]} 5. a3 {[%clk 0:03:01]}  Bxc3+ {[%clk 0:02:47]} 6. bxc3 {[%clk 0:03:02]}  d6 {[%clk 0:02:48]} 7. Bd3 {[%clk 0:03:01]}  Nc6 {[%clk 0:02:45]} 8. e4 {[%clk 0:02:55]}  e5 {[%clk 0:02:44]} 9. d5 {[%clk 0:02:55]}  Na5 {[%clk 0:02:42]} 10. Ne2 {[%clk 0:02:44]}  Nd7 {[%clk 0:02:39]} 11. Ng3 {[%clk 0:02:35]}  Nc5 {[%clk 0:02:38]} 12. Rb1 {[%clk 0:02:25]}  Nxd3+ {[%clk 0:02:25]} 13. Qxd3 {[%clk 0:02:26]}  b6 {[%clk 0:02:23]} 14. O-O {[%clk 0:02:26]}  Ba6 {[%clk 0:02:22]} 15. Rb4 {[%clk 0:02:26]}  c5 {[%clk 0:02:20]} 16. Rb5 {[%clk 0:02:11]}  Bxb5 {[%clk 0:02:07]} 17. cxb5 {[%clk 0:02:12]}  c4 {[%clk 0:02:07]} 18. Qf3 {[%clk 0:02:08]}  Nb3 {[%clk 0:02:01]} 19. Be3 {[%clk 0:02:08]}  g6 {[%clk 0:01:41]} 20. Qg4 {[%clk 0:01:57]}  Kh8 {[%clk 0:01:33]} 21. f4 {[%clk 0:01:56]}  f6 {[%clk 0:01:27]} 22. h4 {[%clk 0:01:53]}  Qc8 {[%clk 0:01:21]} 23. Qf3 {[%clk 0:01:38]}  Qd7 {[%clk 0:00:41]} 24. h5 {[%clk 0:01:37]}  Kg7 {[%clk 0:00:38]} 25. hxg6 {[%clk 0:01:05]}  hxg6 {[%clk 0:00:36]} 26. f5 {[%clk 0:01:05]}  g5 {[%clk 0:00:37]} 27. Bxg5 {[%clk 0:00:38]}  fxg5 {[%clk 0:00:32]} 28. f6+ {[%clk 0:00:38]}  Kh8 {[%clk 0:00:33]} 29. Kf2 {[%clk 0:00:31]}  g4 {[%clk 0:00:24]} 30. Rh1+ {[%clk 0:00:23]}  Kg8 {[%clk 0:00:25]} 31. Qe3 {[%clk 0:00:24]}  Rxf6+ {[%clk 0:00:25]} 32. Ke1 {[%clk 0:00:21]}  Raf8 {[%clk 0:00:23]} 33. Nh5 {[%clk 0:00:14]}  Rg6 {[%clk 0:00:19]} 34. Ng3 {[%clk 0:00:11]}  Nc5 {[%clk 0:00:20]} 35. Nf5 {[%clk 0:00:10]}  Rxf5 {[%clk 0:00:20]} 36. exf5 {[%clk 0:00:10]}  Qxf5 {[%clk 0:00:21]} 37. Rh6 {[%clk 0:00:09]}  Nd3+ {[%clk 0:00:18]} 38. Kd2 {[%clk 0:00:09]}  Rxh6 {[%clk 0:00:18]} 39. Qxh6 {[%clk 0:00:10]}  Qf4+ {[%clk 0:00:19]} 0-1


[Site "https://www.chess.com"]

[Event "Titled Tuesday Blitz March 07 Early 2023"]
[White "Santos Ruiz, Miguel"]
[Black "Malyi, Viacheslav"]
[WhiteFideId "22291482"]
[BlackFideId "14123983"]
[WhiteElo "2504"]
[BlackElo "2291"]
[Result "1/2-1/2"]
[Round "03"]
[TimeControl "180+2"]
[Date "2023.03.07"]
[WhiteClock "0:00:13"]
[BlackClock "0:00:11"]

1. e4 {[%clk 0:02:44]}  e5 {[%clk 0:02:59]} 2. Nf3 {[%clk 0:02:44]}  Nc6 {[%clk 0:03:00]} 3. Bc4 {[%clk 0:02:44]}  Bc5 {[%clk 0:03:00]} 4. d3 {[%clk 0:02:43]}  Nf6 {[%clk 0:02:59]} 5. h3 {[%clk 0:02:43]}  d6 {[%clk 0:03:00]} 6. c3 {[%clk 0:02:42]}  a6 {[%clk 0:02:57]} 7. a4 {[%clk 0:02:41]}  Ba7 {[%clk 0:02:58]} 8. O-O {[%clk 0:02:41]}  O-O {[%clk 0:02:57]} 9. Re1 {[%clk 0:02:41]}  Re8 {[%clk 0:02:56]} 10. Nbd2 {[%clk 0:02:39]}  Nh5 {[%clk 0:02:57]} 11. Nf1 {[%clk 0:02:27]}  Qf6 {[%clk 0:02:56]} 12. d4 {[%clk 0:01:39]}  Nf4 {[%clk 0:02:47]} 13. Ng3 {[%clk 0:01:25]}  g5 {[%clk 0:02:05]} 14. Nf5 {[%clk 0:00:57]}  Bxf5 {[%clk 0:01:41]} 15. exf5 {[%clk 0:00:57]}  Qxf5 {[%clk 0:01:42]} 16. Be3 {[%clk 0:00:37]}  h6 {[%clk 0:01:39]} 17. dxe5 {[%clk 0:00:34]}  Nxe5 {[%clk 0:01:35]} 18. Nxe5 {[%clk 0:00:33]}  Rxe5 {[%clk 0:01:33]} 19. Bxa7 {[%clk 0:00:27]}  Rxa7 {[%clk 0:01:34]} 20. Rxe5 {[%clk 0:00:25]}  Qxe5 {[%clk 0:01:34]} 21. Qd2 {[%clk 0:00:21]}  Nxg2 {[%clk 0:01:23]} 22. Kxg2 {[%clk 0:00:17]}  Qe4+ {[%clk 0:01:23]} 23. f3 {[%clk 0:00:14]}  Qxc4 {[%clk 0:01:23]} 24. Re1 {[%clk 0:00:14]}  Ra8 {[%clk 0:01:19]} 25. Re7 {[%clk 0:00:15]}  Rf8 {[%clk 0:01:17]} 26. b3 {[%clk 0:00:13]}  Qxb3 {[%clk 0:01:11]} 27. Rxc7 {[%clk 0:00:13]}  Qxa4 {[%clk 0:01:03]} 28. Qxd6 {[%clk 0:00:13]}  Qc2+ {[%clk 0:00:57]} 29. Kg3 {[%clk 0:00:13]}  Qg6 {[%clk 0:00:51]} 30. Qxg6+ {[%clk 0:00:12]}  fxg6 {[%clk 0:00:52]} 31. Rxb7 {[%clk 0:00:13]}  Rf6 {[%clk 0:00:51]} 32. Ra7 {[%clk 0:00:13]}  Rc6 {[%clk 0:00:49]} 33. c4 {[%clk 0:00:13]}  h5 {[%clk 0:00:46]} 34. c5 {[%clk 0:00:09]}  Rxc5 {[%clk 0:00:45]} 35. Rxa6 {[%clk 0:00:09]}  Kg7 {[%clk 0:00:46]} 36. Ra7+ {[%clk 0:00:09]}  Kh6 {[%clk 0:00:46]} 37. Ra8 {[%clk 0:00:10]}  Rc2 {[%clk 0:00:45]} 38. h4 {[%clk 0:00:08]}  gxh4+ {[%clk 0:00:35]} 39. Kxh4 {[%clk 0:00:09]}  Rc4+ {[%clk 0:00:32]} 40. Kg3 {[%clk 0:00:09]}  Rb4 {[%clk 0:00:29]} 41. Ra5 {[%clk 0:00:09]}  Rb1 {[%clk 0:00:28]} 42. Rc5 {[%clk 0:00:09]}  Rg1+ {[%clk 0:00:28]} 43. Kf2 {[%clk 0:00:09]}  Rh1 {[%clk 0:00:27]} 44. Kg2 {[%clk 0:00:09]}  Rd1 {[%clk 0:00:27]} 45. Kg3 {[%clk 0:00:09]}  Rd6 {[%clk 0:00:27]} 46. Kh2 {[%clk 0:00:09]}  Rf6 {[%clk 0:00:28]} 47. Kg3 {[%clk 0:00:10]}  Rf5 {[%clk 0:00:29]} 48. Rxf5 {[%clk 0:00:09]}  gxf5 {[%clk 0:00:28]} 49. f4 {[%clk 0:00:09]}  Kg6 {[%clk 0:00:29]} 50. Kh3 {[%clk 0:00:10]}  Kh6 {[%clk 0:00:13]} 51. Kh4 {[%clk 0:00:09]}  Kg6 {[%clk 0:00:13]} 52. Kg3 {[%clk 0:00:10]}  Kh6 {[%clk 0:00:12]} 53. Kh3 {[%clk 0:00:10]}  Kg6 {[%clk 0:00:11]} 54. Kh4 {[%clk 0:00:11]}  Kh6 {[%clk 0:00:11]} 55. Kg3 {[%clk 0:00:11]}  Kg6 {[%clk 0:00:11]} 56. Kh4 {[%clk 0:00:12]}  Kh6 {[%clk 0:00:11]} 57. Kg3 {[%clk 0:00:13]} 1/2-1/2


[Site "https://www.chess.com"]